[Event "Bijnor Open 2024"]
[Site "Bijnor"]
[Date "2024.03.17"]
[Round "2.3"]
[White "Laxman, R.R."]
[Black "Kapil Kumar, Khare"]
[Result "1-0"]
[ECO "A52"]
[WhiteElo "2331"]
[BlackElo "1597"]
[Annotator "TA"]
[PlyCount "94"]
[EventDate "2024.03.17"]
[EventCountry "IND"]
[SourceTitle "playchess.com"]
[Source "ChessBase"]
[SourceQuality "1"]
[TimeControl "5400+30"]

{[%evp 9,94,41,130,133,133,114,132,125,172,166,150,160,160,143,117,119,106,107,114,116,135,143,137,115,118,133,147,143,148,132,168,164,231,218,234,230,232,234,266,235,264,253,256,262,316,333,320,317,329,335,302,242,268,261,262,251,252,214,258,256,285,287,324,311,313,339,334,327,309,199,343,330,1125,1110,5229,5214,2631,1777,29962,29955,29972,29970,29963,5535,29985,29986,29972]} 1. d4 {[%emt 0:00:03]} Nf6 {[%emt 0:00:28]} 2. c4 {[%emt 0:00:05]} e5 {[%emt 0:01:06]} 3. dxe5 {[%emt 0:00:09]} Ng4 {[%emt 0:00:17]} 4. Nf3 {[%emt 0:00:13]} Bc5 {[%emt 0:00:25]} 5. e3 {[%emt 0:00:06]} Qe7 {[%emt 0:00:41]} (5... Nc6 $14) 6. Nc3 $16 {[%emt 0:00:20] [#] Strongly threatening Nd5.} Nxe5 {[%emt 0:01:18]} 7. Nd5 {[%emt 0:00:29][%csl LRc7,LRe7]} Nxf3+ {[%emt 0:00:16]} 8. Qxf3 {[%emt 0:00:09] White is clearly better.} Bb4+ {[%emt 0:00:54]} (8... Qd6 $16 {was called for.}) 9. Kd1 {[%emt 0:00:54]} Qd6 {[%emt 0:02:37]} 10. a3 {[%emt 0:00:37]} Ba5 {[%emt 0:02:06]} 11. b4 {[%emt 0:00:40]} c6 {[%emt 0:00:46]} 12. bxa5 {[%emt 0:02:03] [#] aiming for Qf4.} cxd5 {[%emt 0:00:56]} 13. Qxd5 {[%emt 0:00:30]} Qf6 {[%emt 0:04:10]} 14. Qd4 $36 {[%emt 0:00:54][%mdl 2048] White has strong initiative. White is more active.} Nc6 {[%emt 0:04:44]} 15. Qxf6 {[%emt 0:00:04]} gxf6 {[%emt 0:01:12]} 16. Bb2 {[%emt 0:00:10]} Ke7 {[%emt 0:00:11]} 17. Bc3 {[%emt 0:00:06]} Rg8 {[%emt 0:00:59]} 18. g3 {[%emt 0:00:13]} d6 {[%emt 0:00:42][%cal Bd7d6,Bd6d5][%mdl 32]} 19. Bg2 {[%emt 0:00:18]} Be6 {[%emt 0:01:17][%cal Bc8e6,Be6c4,Bc4a6,Ba6b7][%mdl 32]} 20. a6 {[%emt 0:00:11][%cal Ba5a6,Ba6b7][%mdl 32]} Kd7 {[%emt 0:04:06]} (20... Rac8 $142) 21. axb7 $18 {[%emt 0:00:10]} Rab8 {[%emt 0:00:18]} 22. Rb1 {[%emt 0:00:19]} Bxc4 {[%emt 0:00:59]} 23. Bxf6 {[%emt 0:00:22] This pair of bishops is nice.} d5 {[%emt 0:01:27]} 24. Bh3+ {[%emt 0:01:30][%cal Bg2h3,Bh3c8,Bc8f5][%mdl 32]} Kc7 {[%emt 0:00:16]} 25. Bc8 {[%emt 0:00:09]} Ba6 {[%emt 0:02:03]} 26. Kd2 {[%emt 0:00:21]} Bxb7 {[%emt 0:01:58] Black is weak on the dark squares} 27. Bf5 {[%emt 0:01:13]} h6 {[%emt 0:01:55]} 28. Rhc1 {[%emt 0:00:06]} Kd6 {[%emt 0:01:07] Dodges Be5+} 29. f4 {[%emt 0:00:10]} Ba6 {[%emt 0:01:21]} 30. e4 {[%emt 0:01:32] Black must now prevent e5+.} Rxb1 {[%emt 1:04:55]} 31. e5+ {[%emt 1:31:54]} Kc7 {[%emt 0:00:00]} 32. Bxb1 {[%emt 0:00:00]} Bc4 {[%emt 0:00:00]} 33. Bd3 {[%emt 0:00:00]} Na5 {[%emt 0:00:00]} 34. Ke3 {[%emt 0:00:00]} Kc6 {[%emt 0:00:00]} 35. Be7 {[%emt 0:00:00]} Rb8 {[%emt 0:00:00]} 36. Bb4 {[%emt 0:00:00]} Nb3 {[%emt 0:00:00]} 37. Rc2 {[%emt 0:00:00]} Kb5 {[%emt 0:00:00]} 38. Bd6 {[%emt 0:00:00]} Rc8 {[%emt 0:00:00]} 39. f5 {[%emt 0:00:00][%cal Bf4f5,Bf5f6,Bf6f7][%mdl 32]} Rc6 {[%emt 0:00:00]} (39... Bxd3 {was worth a try.} 40. Rxc8 Bxf5) 40. Bxc4+ {[%emt 0:00:00]} Rxc4 $2 {[%emt 0:00:00]} (40... dxc4 41. g4 a5) 41. Rxc4 {[%emt 0:00:00]} dxc4 {[%emt 0:00:00][%mdl 4096] Endgame. KB-KN} 42. e6 {[%emt 0:00:00]} fxe6 {[%emt 0:06:00]} 43. f6 {[%emt 0:06:00] White threatens f7 and mate.} c3 {[%emt 0:00:00]} 44. Kd3 {[%emt 0:00:00]} c2 {[%emt 0:00:00]} 45. Kxc2 {[%emt 0:00:00]} Nd4+ {[%emt 0:00:00]} 46. Kd3 {[%emt 0:00:00]} Kc6 {[%emt 0:00:00]} 47. f7 {[%emt 0:00:00]} Kd5 {[%emt 0:02:30] Weighted Error Value: White=0.08 (flawless) /Black=0.41.  Mistake:       	---       	Black=4      Inaccurate:     	White=1     	Black=1      OK:         	White=21    	Black=13     Best:        	White=1     	Black=4} 1-0

[Event "Bijnor Open 2024"]
[Site "Bijnor"]
[Date "2024.03.17"]
[Round "2.4"]
[White "Bhavya Arora"]
[Black "Vrashank Chouhan"]
[Result "0-1"]
[ECO "D02"]
[WhiteElo "1593"]
[BlackElo "2330"]
[Annotator "RC"]
[PlyCount "90"]
[EventDate "2024.03.17"]
[EventCountry "IND"]
[SourceTitle "playchess.com"]
[Source "ChessBase"]
[SourceQuality "1"]
[TimeControl "5400+30"]

1. d4 {[%emt 0:00:05]} d5 {[%emt 0:03:06]} 2. Bf4 {[%emt 0:00:33]} Nf6 {[%emt 0:00:13]} 3. e3 {[%emt 0:00:20]} c5 {[%emt 0:00:08]} 4. c3 {[%emt 0:00:36]} Nc6 {[%emt 0:00:07]} 5. Nd2 {[%emt 0:00:48]} e6 {[%emt 0:01:11]} 6. Ngf3 {[%emt 0:00:45]} cxd4 {[%emt 0:00:08]} 7. exd4 {[%emt 0:00:23]} Nh5 {[%emt 0:00:07]} 8. Be3 {[%emt 0:01:08]} Bd6 {[%emt 0:00:07]} 9. Ne5 {[%emt 0:01:56]} Nf6 {[%emt 0:02:16]} 10. f4 {[%emt 0:03:41]} Qb6 {[%emt 0:00:13]} 11. Qc2 {[%emt 0:10:40]} Nxe5 {[%emt 0:02:19]} 12. fxe5 {[%emt 0:09:51]} Bxe5 {[%emt 0:00:06]} 13. Nf3 {[%emt 0:02:06]} Bd6 {[%emt 0:00:15]} 14. Qd2 {[%emt 0:03:05]} Ne4 {[%emt 0:06:42]} 15. Qc1 {[%emt 0:03:51]} Bd7 {[%emt 0:08:13]} 16. a4 {[%emt 0:05:10]} Qb3 {[%emt 0:03:07]} 17. a5 {[%emt 0:19:04]} Bb5 {[%emt 0:01:10]} 18. Nd2 {[%emt 0:02:20]} Nxd2 {[%emt 0:00:15]} 19. Qxd2 {[%emt 0:00:23]} Bxf1 {[%emt 0:01:32]} 20. Rxf1 {[%emt 0:02:20]} O-O {[%emt 0:02:39]} 21. Rf3 {[%emt 0:04:33]} Rac8 {[%emt 0:01:48]} 22. Rh3 {[%emt 0:03:17]} f5 {[%emt 0:09:12]} 23. Kf1 {[%emt 0:11:07]} Rc4 {[%emt 0:01:59]} 24. Kg1 {[%emt 0:01:58]} Ra4 {[%emt 0:02:51]} 25. Rc1 {[%emt 0:06:17]} Ra2 {[%emt 0:01:22]} 26. Rb1 {[%emt 0:04:20]} Ba3 {[%emt 0:05:03]} 27. Qe2 {[%emt 0:00:24]} Rxb2 {[%emt 0:02:26]} 28. Rxb2 {[%emt 0:00:07]} Qxb2 {[%emt 0:00:06]} 29. Bd2 {[%emt 0:00:05]} Rf6 {[%emt 0:03:57]} 30. Re3 {[%emt 0:01:38]} Kf7 {[%emt 0:04:18]} 31. Qh5+ {[%emt 0:00:59]} Rg6 {[%emt 0:00:06]} 32. Qe2 {[%emt 0:00:13]} Qb1+ {[%emt 0:01:00]} 33. Be1 {[%emt 0:00:32]} Bc1 {[%emt 0:03:27]} 34. Rd3 {[%emt 0:01:02]} Rg4 {[%emt 0:07:11]} 35. Qf1 {[%emt 0:00:55]} Qc2 {[%emt 0:01:57]} 36. Rf3 {[%emt 0:00:43]} Kg8 {[%emt 0:06:36]} 37. h3 {[%emt 0:01:06]} Re4 {[%emt 0:00:02]} 38. Rf2 {[%emt 0:00:30]} Be3 {[%emt 0:00:15]} 39. Qb5 {[%emt 0:00:18]} Bxf2+ {[%emt 0:00:32]} 40. Bxf2 {[%emt 0:00:17]} h6 {[%emt 0:00:18]} 41. Qxb7 {[%emt 0:01:01]} Re2 {[%emt 0:00:31]} 42. Qb8+ {[%emt 0:00:20]} Kh7 {[%emt 0:00:07]} 43. Qg3 {[%emt 0:00:03]} Qd1+ {[%emt 0:02:54]} 44. Kh2 {[%emt 0:00:02]} Qf1 {[%emt 0:00:14]} 45. Be3 {[%emt 0:01:16]} Qe1 {[%emt 0:02:06]} 0-1

[Event "Bijnor Open 2024"]
[Site "Bijnor"]
[Date "2024.03.17"]
[Round "2.5"]
[White "Sai Agni Jeevitesh, J."]
[Black "Surendera Arora"]
[Result "1-0"]
[ECO "B06"]
[WhiteElo "2285"]
[BlackElo "1592"]
[Annotator "TA"]
[PlyCount "99"]
[EventDate "2024.03.17"]
[EventCountry "IND"]
[SourceTitle "playchess.com"]
[Source "ChessBase"]
[SourceQuality "1"]
[TimeControl "5400+30"]

{[%evp 9,99,40,65,62,65,65,76,61,131,126,118,131,130,117,166,120,158,150,166,156,197,180,299,312,311,304,298,302,372,397,404,406,393,305,432,272,280,226,261,233,225,233,220,212,233,210,231,194,235,211,202,193,199,192,189,188,389,228,380,376,470,468,635,536,629,625,622,614,969,982,943,941,856,877,29981,29982,29981,29982,29959,29977,29989,29984,29984,29985,29985,29986,29986,29987,29988,29989,29988,29989]} 1. d4 {[%emt 0:00:02]} g6 {[%emt 0:00:08]} 2. e4 {[%emt 0:00:30]} Bg7 {[%emt 0:00:33]} 3. c3 {[%emt 0:00:13]} e6 {[%emt 0:03:54]} 4. Nf3 {[%emt 0:00:35]} Ne7 {[%emt 0:00:33]} 5. Bd3 {[%emt 0:00:11]} O-O {[%emt 0:01:00]} 6. h4 {[%emt 0:01:03]} h5 {[%emt 0:06:41]} 7. Bg5 {[%emt 0:00:03]} Qe8 {[%emt 0:05:47]} 8. Qd2 {[%emt 0:01:54] White is better.} d5 {[%emt 0:00:19]} (8... d6 $14) 9. e5 $16 {[%emt 0:00:37][%cal Og2g4]} Nd7 {[%emt 0:01:51]} 10. Na3 {[%emt 0:01:42]} a6 {[%emt 0:00:39]} 11. Bh6 {[%emt 0:00:33][%cal Og2g4] White is much more active.} f5 {[%emt 0:01:48]} (11... Nf5 $16 {is a better defense.} 12. Bxg7 Kxg7) 12. exf6 {[%emt 0:01:09]} (12. Bxg7 $18 {White threatens Qh6 and mate.} Kxg7 13. Ng5) 12... Nxf6 {[%emt 0:00:22]} 13. Bxg7 {[%emt 0:01:15]} Kxg7 {[%emt 0:00:20]} 14. O-O-O {[%emt 0:00:04]} b5 {[%emt 0:04:02]} 15. Ne5 {[%emt 0:00:24][%cal Og2g4]} Ne4 {[%emt 0:05:30]} (15... Nd7 $142) 16. Bxe4 $18 {[%emt 0:01:11]} dxe4 {[%emt 0:00:16]} 17. g4 {[%emt 0:00:07]} Rh8 {[%emt 0:03:42]} 18. Rdg1 {[%emt 0:01:28]} Bb7 {[%emt 0:02:43][%cal Oe4e3]} 19. Qg5 {[%emt 0:00:54]} e3 {[%emt 0:06:00]} 20. f3 {[%emt 0:00:18]} e2 {[%emt 0:01:48]} 21. Rh2 {[%emt 0:01:44]} (21. gxh5 Rxh5 22. Qe3 Qf8 $18) 21... Qf8 {[%emt 0:01:45]} (21... hxg4 $142 22. fxg4 (22. Nxg4 Rh5 $18) 22... Nd5) 22. Rxe2 {[%emt 0:00:58]} Qf6 {[%emt 0:02:52]} 23. Qxf6+ {[%emt 0:10:04]} ({Weaker is} 23. gxh5 Qxg5+ 24. Rxg5 (24. hxg5 gxh5 25. g6 h4 $14) 24... Rxh5 $16) 23... Kxf6 {[%emt 0:00:18]} 24. Nd7+ {[%emt 0:00:27] Excellent horsemanship.} Kf7 {[%emt 0:02:45]} 25. Nc5 {[%emt 0:00:23]} Bd5 {[%emt 0:04:46]} 26. b3 {[%emt 0:01:04] Hoping for c4.} Nc6 {[%emt 0:04:15]} 27. Nc2 {[%emt 0:01:19]} a5 {[%emt 0:01:41]} 28. Ne3 {[%emt 0:01:36]} Rae8 {[%emt 0:04:56]} 29. gxh5 {[%emt 0:01:19]} Rxh5 {[%emt 0:02:16]} 30. Rg4 {[%emt 0:00:26] And now c4 would win.} Ne7 {[%emt 0:03:07]} 31. c4 {[%emt 0:03:33]} bxc4 {[%emt 0:01:18]} 32. bxc4 {[%emt 0:00:00]} Bc6 {[%emt 0:01:46] [#]} (32... Ba8 33. Nd7 g5) 33. Nd3 {[%emt 0:00:09]} (33. Rf4+ $142 Nf5 34. Ng4) 33... Kg7 $2 {[%emt 0:02:34]} (33... Rf8 34. Rf4+ Kg8) 34. Nf4 {[%emt 0:00:51][%csl LRe6,LRh5]} Kh6 {[%emt 0:01:27]} 35. Nxh5 {[%emt 0:01:18]} (35. Nxe6 Bxf3 36. Rf2 Nf5 37. Rxf3 Rxe6 $16) 35... Bxf3 {[%emt 0:00:31]} 36. Ng3 {[%emt 0:00:40]} Bxe2 {[%emt 0:07:45]} 37. Nxe2 {[%emt 0:00:05]} Nf5 {[%emt 0:00:42]} 38. Re4 {[%emt 0:00:23]} Kh5 {[%emt 0:02:54]} 39. Nf4+ {[%emt 0:00:58]} Kxh4 {[%emt 0:01:15]} 40. Nxe6+ {[%emt 0:01:53]} Kg3 {[%emt 0:00:31]} 41. Kd2 {[%emt 0:00:30]} c6 {[%emt 0:02:38]} 42. Rg4+ {[%emt 0:00:52] White mates.} Kh2 {[%emt 0:02:08]} 43. Rg2+ {[%emt 0:01:11]} Kh1 {[%emt 0:00:33]} 44. Rxg6 {[%emt 0:00:17]} Nd6 {[%emt 0:05:51]} 45. Ng5 {[%emt 0:00:49]} Ne4+ {[%emt 0:02:29]} 46. Nxe4 {[%emt 0:00:08]} Rxe4 {[%emt 0:00:24]} 47. d5 {[%emt 0:00:15]} cxd5 {[%emt 0:00:18]} 48. cxd5 {[%emt 0:00:02]} Ra4 {[%emt 0:00:34]} 49. d6 {[%emt 0:00:07]} Rxa2+ {[%emt 0:00:10]} 50. Nc2 {[%emt 0:00:01] Black did not feel at home in the position after the opening.   Weighted Error Value: White=0.30/Black=0.62.  Mistake:       	White=2     	Black=6      Inaccurate:     	White=1     	Black=2      OK:         	White=15    	Black=9      Best:        	White=2     	Black=2} 1-0

[Event "Bijnor Open 2024"]
[Site "Bijnor"]
[Date "2024.03.17"]
[Round "2.6"]
[White "Anant Panwar"]
[Black "Vignesh B"]
[Result "0-1"]
[ECO "A52"]
[WhiteElo "1591"]
[BlackElo "2209"]
[Annotator "RC"]
[PlyCount "92"]
[EventDate "2024.03.17"]
[EventCountry "IND"]
[SourceTitle "playchess.com"]
[Source "ChessBase"]
[SourceQuality "1"]
[TimeControl "5400+30"]

1. d4 {[%emt 0:00:03]} Nf6 {[%emt 0:00:06]} 2. c4 {[%emt 1:31:27]} e5 {[%emt 0:00:10]} 3. dxe5 {[%emt 0:00:00]} Ng4 {[%emt 0:00:07]} 4. Nf3 {[%emt 0:00:00]} Nc6 {[%emt 0:00:06]} 5. Bf4 {[%emt 0:00:00]} Bb4+ {[%emt 0:00:06]} 6. Nbd2 {[%emt 0:00:00]} Qe7 {[%emt 0:00:06]} 7. e3 {[%emt 0:00:00]} Ngxe5 {[%emt 0:00:30]} 8. Nxe5 {[%emt 0:00:00]} Nxe5 {[%emt 0:00:08]} 9. a3 {[%emt 0:00:00]} Bxd2+ {[%emt 0:01:40]} 10. Qxd2 {[%emt 0:00:00]} d6 {[%emt 0:00:08]} 11. Be2 {[%emt 0:00:00]} a5 {[%emt 0:05:37]} 12. O-O {[%emt 0:00:00]} g5 {[%emt 0:00:26]} 13. Bxg5 {[%emt 0:00:00]} Qxg5 {[%emt 0:00:43]} 14. f4 {[%emt 0:00:00]} Qe7 {[%emt 0:02:47]} 15. fxe5 {[%emt 0:00:00]} Qxe5 {[%emt 0:00:24]} 16. c5 {[%emt 0:00:00]} dxc5 {[%emt 0:05:23]} 17. Rad1 {[%emt 0:00:00]} Be6 {[%emt 0:00:42]} 18. Rf3 {[%emt 0:00:00]} h5 {[%emt 0:01:52]} 19. Kh1 {[%emt 0:00:00]} Ke7 {[%emt 0:03:00]} 20. Qc2 {[%emt 0:00:00]} Rhg8 {[%emt 0:03:55]} 21. Bc4 {[%emt 0:00:00]} Rg7 {[%emt 0:04:03]} 22. Bxe6 {[%emt 0:00:00]} fxe6 {[%emt 0:02:26]} 23. Qd3 {[%emt 0:00:00]} Qd5 {[%emt 0:03:46]} 24. Qc2 {[%emt 0:00:00]} Qe5 {[%emt 0:05:18]} 25. Qd3 {[%emt 0:00:00]} Qd5 {[%emt 0:01:05]} 26. Qc2 {[%emt 0:00:00]} Qc6 {[%emt 0:00:21]} 27. Qf2 {[%emt 0:00:00]} Qe4 {[%emt 0:01:19]} 28. Rf4 {[%emt 0:00:00]} Qe5 {[%emt 0:06:17]} 29. Qd2 {[%emt 0:00:00]} Qd5 {[%emt 0:04:30]} 30. Qe2 {[%emt 0:00:00]} Rxg2 {[%emt 0:02:25]} 31. Rxd5 {[%emt 0:00:00]} Rxe2 {[%emt 0:00:08]} 32. Rxc5 {[%emt 0:01:25]} Kd6 {[%emt 0:00:29]} 33. Rxh5 {[%emt 0:01:14]} c5 {[%emt 0:00:18]} 34. h4 {[%emt 0:02:28]} Rxb2 {[%emt 0:00:10]} 35. Re4 {[%emt 0:01:12]} b5 {[%emt 0:00:19]} 36. Rhe5 {[%emt 0:00:49]} Re8 {[%emt 0:00:08]} 37. h5 {[%emt 0:00:50]} c4 {[%emt 0:00:02]} 38. Rg5 {[%emt 0:03:06]} c3 {[%emt 0:00:07]} 39. Rd4+ {[%emt 0:00:28]} Kc6 {[%emt 0:00:06]} 40. Rg1 {[%emt 0:00:36]} b4 {[%emt 0:00:26]} 41. axb4 {[%emt 0:00:27]} axb4 {[%emt 0:00:06]} 42. Rc1 {[%emt 0:02:15]} Kb5 {[%emt 0:00:18]} 43. h6 {[%emt 0:03:05]} c2 {[%emt 0:00:34]} 44. Kh2 {[%emt 0:00:29]} b3 {[%emt 0:00:07]} 45. Rd7 {[%emt 0:01:38]} Rb1 {[%emt 0:00:14]} 46. h7 {[%emt 0:01:20]} Rxc1 {[%emt 0:00:06]} 0-1

[Event "Bijnor Open 2024"]
[Site "Bijnor"]
[Date "2024.03.17"]
[Round "2.7"]
[White "Mahindrakar Indrajeet"]
[Black "Sarvagya Bharadwaj"]
[Result "1-0"]
[ECO "C70"]
[WhiteElo "2136"]
[BlackElo "1589"]
[Annotator "NA RC"]
[PlyCount "101"]
[EventDate "2024.03.17"]
[EventCountry "IND"]
[SourceTitle "playchess.com"]
[Source "ChessBase"]
[SourceQuality "1"]
[TimeControl "5400+30"]

1. e4 {[%emt 0:00:23]} e5 {[%emt 0:00:22]} 2. Nf3 {[%emt 0:02:55]} Nc6 {[%emt 0:01:27]} 3. Bb5 {[%emt 0:00:04]} a6 {[%emt 0:00:41]} 4. Ba4 {[%emt 0:00:07]} Bc5 {[%emt 0:00:24]} 5. c3 {[%emt 0:00:50]} b5 {[%emt 0:01:33]} 6. Bb3 {[%emt 0:00:16]} d6 {[%emt 0:00:29]} 7. h3 {[%emt 0:02:37]} Nf6 {[%emt 0:00:28]} 8. O-O {[%emt 0:00:10]} Bd7 {[%emt 0:00:42]} 9. Re1 {[%emt 0:04:46]} h6 {[%emt 0:00:54]} 10. d4 {[%emt 0:00:56]} Ba7 {[%emt 0:00:13]} 11. Be3 {[%emt 0:03:37]} O-O {[%emt 0:01:12]} 12. Nbd2 {[%emt 0:00:16]} Re8 {[%emt 0:00:25]} 13. d5 {[%emt 0:02:33]} Ne7 {[%emt 0:00:13]} 14. a4 {[%emt 0:02:53]} Ng6 {[%emt 0:00:49]} 15. Bxa7 {[%emt 0:02:37]} Rxa7 {[%emt 0:00:08]} 16. axb5 {[%emt 0:00:06]} Bxb5 {[%emt 0:00:35]} 17. Ba4 {[%emt 0:00:45]} Ra8 {[%emt 0:00:57]} 18. b4 {[%emt 0:02:16]} Nf4 {[%emt 0:05:25]} 19. Re3 {[%emt 0:01:26]} Nh7 {[%emt 0:07:13]} 20. Nf1 {[%emt 0:01:11]} Ng5 {[%emt 0:00:35]} 21. Nxg5 {[%emt 0:10:09]} Qxg5 {[%emt 0:01:08]} 22. Qg4 {[%emt 0:00:24]} Qxg4 {[%emt 0:02:56]} 23. hxg4 {[%emt 0:00:32]} Reb8 {[%emt 0:00:15]} 24. g3 {[%emt 0:04:11]} Nh3+ {[%emt 0:00:47]} 25. Kg2 {[%emt 0:00:13]} Ng5 {[%emt 1:13:09]} 26. Nd2 {[%emt 0:00:47]} a5 {[%emt 0:00:00]} 27. Bxb5 {[%emt 0:00:29]} Rxb5 {[%emt 0:00:00]} 28. Nc4 {[%emt 0:00:22]} a4 {[%emt 0:00:00]} 29. f3 {[%emt 0:02:13]} f6 {[%emt 0:00:00]} 30. Re2 {[%emt 0:00:16]} Nf7 {[%emt 0:00:00]} 31. Rea2 {[%emt 0:00:27]} Nd8 {[%emt 0:00:00]} 32. Rxa4 {[%emt 0:00:12]} Rab8 {[%emt 0:00:00]} 33. Ra7 {[%emt 0:01:31]} Nb7 {[%emt 0:00:00]} 34. R1a6 {[%emt 0:00:48]} Kf8 {[%emt 0:00:00]} 35. Rc6 {[%emt 0:00:33]} Rc8 {[%emt 0:00:00]} 36. Na3 {[%emt 0:02:54]} Nd8 {[%emt 0:00:00]} 37. Nxb5 {[%emt 0:00:03]} Nxc6 {[%emt 0:00:00]} 38. dxc6 {[%emt 0:00:05]} Ke8 {[%emt 0:00:00]} 39. Rxc7 {[%emt 0:00:11]} Rxc7 {[%emt 0:00:00]} 40. Nxc7+ {[%emt 0:00:02]} Kd8 {[%emt 0:00:00]} 41. Nd5 {[%emt 0:00:15]} Kc8 {[%emt 0:00:00]} 42. b5 {[%emt 0:00:03]} Kd8 {[%emt 0:00:00]} 43. b6 {[%emt 0:00:05]} Kc8 {[%emt 0:00:00]} 44. Ne7+ {[%emt 0:00:59]} Kd8 {[%emt 0:00:00]} 45. c7+ {[%emt 0:00:03]} Ke8 {[%emt 0:00:00]} 46. c8=Q+ {[%emt 0:00:10]} Kxe7 {[%emt 0:00:00]} 47. b7 {[%emt 0:00:02]} Kf7 {[%emt 0:00:00]} 48. b8=Q {[%emt 0:00:04]} Kg6 {[%emt 0:00:00]} 49. Qf5+ {[%emt 0:00:17]} Kf7 {[%emt 0:00:00]} 50. Qc7+ {[%emt 0:00:29]} Ke8 {[%emt 0:00:00]} 51. Qfc8# {[%emt 0:00:04]} 1-0

[Event "Bijnor Open 2024"]
[Site "Bijnor"]
[Date "2024.03.17"]
[Round "2.8"]
[White "Aabhas Kumar Srivastava"]
[Black "Balkishan, A.."]
[Result "0-1"]
[ECO "B47"]
[WhiteElo "1587"]
[BlackElo "2108"]
[Annotator "NA RC"]
[PlyCount "111"]
[EventDate "2024.03.17"]
[EventCountry "IND"]
[SourceTitle "playchess.com"]
[Source "ChessBase"]
[SourceQuality "1"]
[TimeControl "5400+30"]

1. e4 {[%emt 0:00:03]} c5 {[%emt 0:01:20]} 2. Nf3 {[%emt 0:00:12]} e6 {[%emt 0:00:03]} 3. d4 {[%emt 0:00:08]} cxd4 {[%emt 0:00:02]} 4. Nxd4 {[%emt 0:00:09]} Nc6 {[%emt 0:00:03]} 5. Nc3 {[%emt 0:00:18]} Qc7 {[%emt 0:00:03]} 6. Nxc6 {[%emt 0:00:33]} bxc6 {[%emt 0:00:07]} 7. Bd3 {[%emt 0:00:09]} Nf6 {[%emt 0:00:41]} 8. O-O {[%emt 0:00:18]} d5 {[%emt 0:00:23]} 9. Re1 {[%emt 0:02:36]} Be7 {[%emt 0:04:57]} 10. f4 {[%emt 0:03:12]} Bc5+ {[%emt 0:00:36]} 11. Kh1 {[%emt 0:00:47]} h5 {[%emt 0:00:03]} 12. Qf3 {[%emt 0:06:58]} Ng4 {[%emt 0:01:08]} 13. Re2 {[%emt 0:01:34]} Kf8 {[%emt 0:02:00]} 14. e5 {[%emt 0:11:55]} a5 {[%emt 0:01:20]} 15. a4 {[%emt 0:08:59]} Qb6 {[%emt 0:03:49]} 16. Nd1 {[%emt 0:01:21]} g6 {[%emt 0:00:22]} 17. b3 {[%emt 0:01:21]} Ba6 {[%emt 0:02:20]} 18. Ba3 {[%emt 0:05:34]} Bxa3 {[%emt 0:00:11]} 19. Ra2 {[%emt 0:53:53]} Bb2 20. Rxb2 {[%emt 0:00:00]} Qd4 {[%emt 0:00:55]} 21. Ra2 {[%emt 0:00:00]} Bxd3 {[%emt 0:03:39]} 22. cxd3 {[%emt 0:00:00]} Rb8 {[%emt 0:00:29]} 23. Rab2 {[%emt 0:00:00]} Ke7 {[%emt 0:00:38]} 24. Ne3 {[%emt 0:00:00]} Qxd3 {[%emt 0:03:41]} 25. Kg1 {[%emt 0:00:00]} Qd4 {[%emt 0:00:25]} 26. h3 {[%emt 0:00:00]} Nxe3 {[%emt 0:00:13]} 27. Qxe3 {[%emt 0:00:00]} Qxe3+ {[%emt 0:01:04]} 28. Rxe3 {[%emt 0:00:00]} Rb4 {[%emt 0:00:33]} 29. Rc3 {[%emt 0:00:00]} Kd7 {[%emt 0:01:04]} 30. Rbc2 {[%emt 0:00:00]} Rc8 {[%emt 0:00:45]} 31. Rc5 {[%emt 0:00:00]} Rxb3 {[%emt 0:01:32]} 32. Rxa5 {[%emt 0:00:00]} Rc7 {[%emt 0:00:11]} 33. Rac5 {[%emt 0:00:00]} Rb4 {[%emt 0:00:11]} 34. a5 {[%emt 0:00:00]} Rxf4 {[%emt 0:00:08]} 35. Ra2 {[%emt 0:00:00]} Ra7 {[%emt 0:01:33]} 36. Rac2 {[%emt 0:00:00]} Ra4 {[%emt 0:01:58]} 37. Rf2 {[%emt 0:00:00]} Ke7 {[%emt 0:00:17]} 38. Rxc6 {[%emt 0:00:00]} R4xa5 {[%emt 0:00:01]} 39. h4 {[%emt 0:00:00]} Ra4 {[%emt 0:00:26]} 40. g3 {[%emt 0:00:00]} Ra1+ {[%emt 0:00:45]} 41. Kg2 {[%emt 0:00:00]} R1a2 {[%emt 0:00:03]} 42. Rxa2 {[%emt 0:00:00]} Rxa2+ {[%emt 0:00:05]} 43. Kf3 {[%emt 0:00:00]} Ra3+ {[%emt 0:00:04]} 44. Kf4 {[%emt 0:00:00]} Ra4+ {[%emt 0:00:03]} 45. Kf3 {[%emt 0:00:00]} Re4 {[%emt 0:00:06]} 46. Rc7+ {[%emt 0:00:00]} Kf8 {[%emt 0:00:02]} 47. Rc8+ {[%emt 0:00:40]} Kg7 {[%emt 0:00:02]} 48. g4 {[%emt 0:00:42]} Rxg4 {[%emt 0:00:20]} 49. Rd8 {[%emt 0:00:14]} Rxh4 {[%emt 0:00:04]} 50. Ra8 {[%emt 0:00:25]} Re4 {[%emt 0:00:03]} 51. Ra3 {[%emt 0:00:18]} Rxe5 {[%emt 0:00:02]} 52. Kf4 {[%emt 0:00:08]} Re4+ {[%emt 0:00:05]} 53. Kf3 {[%emt 0:00:16]} g5 {[%emt 0:00:03]} 54. Ra2 {[%emt 0:00:07]} h4 {[%emt 0:00:06]} 55. Rh2 {[%emt 0:00:08]} g4+ {[%emt 0:00:07]} 56. Kf2 {[%emt 0:00:43]} 0-1